bitfinex-derivatives/quotes_ETHF0:USTF0_20250327
["timestamp","ask_amount","ask_price","bid_price","bid_amount"]
[1743114514364,3.65706,2012.5,2012.4,3.58541563]
[1743114514567,3.65706,2012.5,2012.4,3.58541801]
[1743114515068,3.65706,2012.5,2012.4,4.08576153]
[1743114515666,3.65706,2012.5,2012.4,3.44086767]
[1743114516160,3.65706,2012.5,2012.4,4.1594998]
[1743114516564,3.65706,2012.5,2012.4,4.15950183]
[1743114516763,3.65706,2012.5,2012.4,3.44086767]
[1743114517068,3.65706,2012.5,2012.4,4.80447844]
[1743114518559,3.65706,2012.5,2012.4,4.08584429]
[1743114518763,3.65706,2012.5,2012.4,4.80463043]
[1743114518963,3.65706,2012.5,2012.4,4.08584429]
[1743114519569,3.65706,2012.5,2012.4,4.8047301]
[1743114521463,3.65706,2012.5,2012.4,4.80523042]
[1743114523371,3.65706,2012.5,2012.4,4.80519163]
[1743114524474,3.65706,2012.5,2012.4,1.64599103]
[1743114524667,3.65706,2012.5,2012.4,1.14532077]
[1743114525574,3.65706,2012.5,2012.4,0.50034415]
[1743114528974,4.06294443,2012.5,2012.4,0.50034415]
[1743114529173,3.65706,2012.5,2012.4,0.50034415]
[1743114529873,3.65706,2012.5,2012.4,1.89544415]
[1743114530168,3.65706,2012.5,2012.4,0.50034415]
[1743114531061,3.65706,2012.5,2012.4,1.81224415]
[1743114534967,3.65706,2012.5,2012.4,0.50034415]
[1743114546487,2.97416,2012.5,2012.4,1.49445415]
[1743114546688,5.49926,2012.5,2012.4,1.49445415]
[1743114546888,5.49926,2012.5,2012.4,2.53854415]
[1743114547478,5.49926,2012.5,2012.4,1.81874415]
[1743114547682,6.19026,2012.5,2012.4,1.81874415]
[1743114548085,6.19026,2012.5,2012.4,2.81285415]
[1743114548590,5.49926,2012.5,2012.4,2.81285415]
[1743114549194,5.49926,2012.5,2012.4,1.81874415]
[1743114550688,5.49926,2012.5,2012.4,2.81285415]
[1743114551395,5.49926,2012.5,2012.4,1.81874415]
[1743114551593,5.49926,2012.5,2012.4,2.81285415]
[1743114552095,5.49926,2012.5,2012.4,1.81874415]
[1743114552096,2.31126,2012.5,2012.4,1.81874415]
[1743114553096,2.31126,2012.5,2012.4,3.51475415]
[1743114553295,2.31126,2012.5,2012.4,4.01525597]
[1743114553595,2.31126,2012.5,2012.4,3.51475415]
[1743114553798,2.31126,2012.5,2012.4,4.01525006]
[1743114553989,2.31126,2012.5,2012.4,3.02114006]
[1743114554293,2.31126,2012.5,2012.4,4.01534302]
[1743114554491,2.31126,2012.5,2012.4,3.02123302]
[1743114554690,2.31126,2012.5,2012.4,3.02121972]
[1743114555594,2.31126,2012.5,2012.4,4.01532972]
[1743114558695,4.20184,2012.6,2012.5,0.99406]
[1743114559000,4.18099,2012.7,2012.6,0.99401]
[1743114559191,4.18099,2012.7,2012.6,2.16396714]
[1743114559390,4.18099,2012.7,2012.6,3.66061]
[1743114561298,4.18099,2012.7,2012.6,1.9971]
[1743114561491,4.83849,2012.7,2012.6,1.9971]
[1743114563800,4.83849,2012.7,2012.6,2.99111]
[1743114564393,4.83849,2012.7,2012.6,1.9971]
[1743114565001,4.83849,2012.7,2012.6,2.99111]
[1743114565402,4.83849,2012.7,2012.6,1.9971]
[1743114565604,4.83849,2012.7,2012.6,2.99111]
[1743114566202,4.83849,2012.7,2012.6,1.9971]
[1743114568497,4.83849,2012.7,2012.6,2.99111]
[1743114568699,4.83849,2012.7,2012.6,1.9971]
[1743114569204,4.83849,2012.7,2012.6,2.99111]
[1743114569394,4.83849,2012.7,2012.6,1.9971]
[1743114569705,4.83849,2012.7,2012.6,2.99111]
[1743114570901,4.83849,2012.7,2012.6,1.9971]
[1743114571107,4.83849,2012.7,2012.6,1.3186]
[1743114571310,5.54539,2012.7,2012.6,1.3186]
[1743114572309,8.75319,2012.7,2012.6,1.3186]
[1743114572811,8.75319,2012.7,2012.6,2.31261]
[1743114573208,8.75319,2012.7,2012.6,1.3186]
[1743114575512,5.54539,2012.7,2012.6,1.3186]
[1743114575711,6.88849,2012.7,2012.6,1.3186]
[1743114578512,10.09629,2012.7,2012.6,1.3186]
[1743114582218,10.09629,2012.7,2012.6,2.31261]
[1743114582514,10.09629,2012.7,2012.6,1.3186]
[1743114583113,10.09629,2012.7,2012.6,2.31261]
[1743114583314,10.09629,2012.7,2012.6,1.3186]
[1743114583514,10.09629,2012.7,2012.6,2.31261]
[1743114584814,9.38939,2012.7,2012.6,2.31261]
[1743114586415,9.38939,2012.7,2012.6,2.81341563]
[1743114586614,9.38939,2012.7,2012.6,2.81341529]
[1743114590418,9.38939,2012.7,2012.6,2.31261]
[1743114597927,4.5509,2012.7,2012.6,2.31261]
[1743114598118,3.2078,2012.7,2012.6,2.81343363]
[1743114598318,3.2078,2012.7,2012.6,3.48493363]
[1743114600627,4.6532,2012.7,2012.6,3.48477022]
[1743114601223,5.64716,2012.7,2012.6,3.48477022]
[1743114601426,1.4454,2012.7,2012.6,3.48477022]
[1743114602128,1.4454,2012.7,2012.6,3.48471028]
[1743114602524,3.2078,2013.0,2012.7,2.48491]
[1743114602725,3.19243808,2013.1,2013.0,0.99382]
[1743114602928,3.19243808,2013.1,2013.0,1.49442028]
[1743114603322,0.00743808,2013.1,2013.0,1.49442028]
[1743114603522,0.00743808,2013.1,2013.0,2.15672028]
[1743114603723,1.00120808,2013.1,2013.0,2.15672028]
[1743114604027,2.32200808,2013.1,2013.0,2.35142]
[1743114605532,1.32823808,2013.1,2013.0,2.35142]
[1743114607427,0.00743808,2013.1,2013.0,2.8510817]
[1743114607929,0.00743808,2013.1,2013.0,2.85090781]
[1743114608127,3.2078,2013.6,2013.5,0.99357]
[1743114608335,6.3918,2013.6,2013.5,0.99357]
[1743114609537,7.7586,2013.6,2013.5,2.34267]
[1743114609727,8.75212,2013.6,2013.5,2.34267]
[1743114611233,7.7586,2013.6,2013.5,2.34267]
[1743114612629,1.3668,2013.6,2013.5,2.34267]
[1743114614823,1.3668,2013.6,2013.5,0.99357]
[1743114615030,0.99357,2013.5,2013.4,0.99361]
[1743114615428,0.99362,2013.4,2013.3,1.3958]
[1743114615740,3.72644,2013.4,2013.3,0.99367]
[1743114616034,6.91044,2013.4,2013.3,0.99367]
[1743114616630,0.99367,2013.3,2013.2,2.063]
[1743114616834,2.37807,2013.3,2013.2,2.38948]
[1743114617734,0.99376,2013.2,2013.1,0.99374]
[1743114617929,2.37816,2013.2,2013.1,2.38714]
[1743114619129,1.3844,2013.2,2013.1,2.38714]
[1743114619729,2.37812,2013.2,2013.1,2.38714]
[1743114621929,1.3844,2013.2,2013.1,2.38714]
[1743114623646,2.37812,2013.2,2013.1,2.38714]
[1743114626556,1.3844,2013.2,2013.1,2.38714]
[1743114627455,1.3844,2013.2,2013.1,2.88626476]
[1743114627858,1.3844,2013.2,2013.1,2.88626779]
[1743114629353,2.37812,2013.2,2013.1,2.88626779]
[1743114629750,2.37812,2013.2,2013.1,2.88657964]
[1743114630062,1.3844,2013.2,2013.1,2.88657964]
[1743114631661,1.3844,2013.2,2013.1,2.88680091]
[1743114632461,2.37812,2013.2,2013.1,0.49966091]
[1743114632762,0.99382,2013.1,2013.0,0.99377]
[1743114632963,3.77082,2013.1,2013.0,1.49372431]
[1743114633965,6.97862,2013.1,2013.0,1.49372431]
[1743114635460,6.97862,2013.1,2013.0,1.49384617]
[1743114636464,6.97862,2013.1,2013.0,0.99377]
[1743114637468,6.97862,2013.1,2013.0,1.49381036]
[1743114637669,6.97857,2013.1,2013.0,2.82801036]
[1743114637967,5.9848,2013.1,2013.0,2.82801036]
[1743114638156,6.97857,2013.1,2013.0,2.82801036]
[1743114639665,6.97857,2013.1,2013.0,2.8279806]
[1743114640266,6.31937,2013.1,2013.0,2.8279806]
[1743114640466,6.31937,2013.1,2013.0,3.5345806]
[1743114640870,5.3256,2013.1,2013.0,3.5345806]
[1743114641070,4.6137,2013.1,2013.0,4.25139758]
[1743114641272,1.4059,2013.1,2013.0,4.25139758]
[1743114641568,1.4059,2013.1,2013.0,4.89586038]
[1743114641773,1.4059,2013.1,2013.0,4.89590371]
[1743114643172,4.87939,2013.3,2013.2,0.99372]
[1743114643375,4.87939,2013.3,2013.2,1.49374682]
[1743114643768,4.87939,2013.3,2013.2,1.49387514]
[1743114644474,6.25239,2013.3,2013.2,1.49387514]
[1743114644866,6.25237,2013.3,2013.2,1.49387514]
[1743114646478,4.1765,2013.7,2013.5,2.48387]
[1743114646673,4.8569,2013.7,2013.6,2.42237]
[1743114648770,3.8634,2013.7,2013.6,2.42237]
[1743114648973,0.6804,2013.7,2013.6,2.42237]
[1743114649176,0.6804,2013.7,2013.6,2.92222482]
[1743114649775,1.9928,2013.7,2013.6,2.92205193]
[1743114649979,2.98627,2013.7,2013.6,2.92205193]
[1743114650178,2.98627,2013.7,2013.6,2.92204803]
[1743114650982,2.98627,2013.7,2013.6,2.42237]
[1743114653682,1.9928,2013.7,2013.6,2.42237]
[1743114654084,2.98627,2013.7,2013.6,2.42237]
[1743114659587,1.9928,2013.7,2013.6,2.9212702]
[1743114659793,2.98627,2013.7,2013.6,2.9212702]
[1743114659995,1.3124,2013.7,2013.6,2.42237]
[1743114660398,1.3124,2013.7,2013.6,2.9212726]
[1743114660990,2.30587,2013.7,2013.6,2.9212726]
[1743114661192,2.30587,2013.7,2013.6,2.42237]
[1743114663793,0.99352,2013.6,2013.5,0.99355]
[1743114663979,6.98852,2013.6,2013.5,0.99355]
[1743114664384,6.98852,2013.6,2013.5,2.40665]
[1743114664781,3.80752,2013.6,2013.5,2.40665]
[1743114670497,3.80752,2013.6,2013.5,1.4131]
[1743114671496,3.80752,2013.6,2013.5,2.40667]
[1743114675188,3.80752,2013.6,2013.5,1.4131]
[1743114675695,3.80752,2013.6,2013.5,2.40667]
[1743114676089,3.80752,2013.6,2013.5,1.4131]
[1743114676992,3.80752,2013.6,2013.5,2.40667]
[1743114678288,3.80752,2013.6,2013.5,2.90693642]
[1743114678602,3.80752,2013.6,2013.5,1.91336642]
[1743114678798,3.80752,2013.6,2013.5,1.9133662]
[1743114679000,3.80752,2013.6,2013.5,1.4131]
[1743114682205,0.99357,2013.5,2013.4,0.99359]
[1743114682404,5.64517,2013.5,2013.4,1.49384459]
[1743114683203,5.64517,2013.5,2013.4,0.50025459]
[1743114683398,5.64517,2013.5,2013.4,1.49387459]
[1743114683593,5.64517,2013.5,2013.4,1.84175459]
[1743114684204,5.64517,2013.5,2013.4,2.83537459]
[1743114684404,5.64517,2013.5,2013.4,1.84175459]
[1743114684601,5.64517,2013.5,2013.4,2.83537459]
[1743114684901,5.64517,2013.5,2013.4,1.84172788]
[1743114686402,0.99367,2013.3,2013.2,3.2078]
[1743114686806,2.42337,2013.3,2013.2,3.2078]
[1743114691809,2.42337,2013.3,2013.2,4.5128]
[1743114693012,0.99386,2012.9,2012.8,0.00743808]
[1743114693211,7.38266,2012.9,2012.8,0.00743808]
[1743114693403,7.38266,2012.9,2012.8,1.41243808]
[1743114693710,8.82276,2012.9,2012.8,1.41243808]
[1743114694215,8.82276,2012.9,2012.8,2.40634808]
[1743114694408,8.82276,2012.9,2012.8,1.41243808]
[1743114696811,8.82276,2012.9,2012.8,0.00743808]
[1743114697011,8.82276,2012.9,2012.8,1.39293808]
[1743114698306,9.48736,2012.9,2012.8,1.39293808]
[1743114699911,9.48736,2012.9,2012.8,0.00743808]
[1743114704112,6.27956,2012.9,2012.8,0.00743808]
[1743114704819,9.48736,2012.9,2012.8,0.00743808]
[1743114712943,10.17826,2012.9,2012.8,0.00743808]
[1743114721046,10.25937206,2012.9,2012.8,0.00743808]
[1743114721640,12.75937206,2012.9,2012.8,8.08e-06]
[1743114721841,12.75937206,2012.9,2012.3,0.7074]
[1743114721842,0.99411,2012.4,2012.3,0.7074]
[1743114722042,0.99436,2011.9,2011.8,0.7074]
[1743114722239,0.99436,2011.9,2011.8,2.20123444]
[1743114722645,0.99436,2011.9,2011.8,3.54873444]
[1743114724052,0.99436,2011.9,2011.8,3.54859746]
[1743114725954,0.99436,2011.9,2011.8,3.5483815]
[1743114726859,0.99434,2012.0,2011.9,0.99431]
[1743114727059,0.99434,2012.0,2011.9,2.80023193]
[1743114727851,7.39053808,2012.1,2012.0,0.99431]
[1743114728054,7.39053808,2012.1,2012.0,2.30121]
[1743114728461,4.18273808,2012.1,2012.0,2.30121]
[1743114728761,7.39053808,2012.1,2012.0,2.30121]
[1743114730549,6.39623808,2012.1,2012.0,2.30121]
[1743114730955,7.39049808,2012.1,2012.0,2.30121]
[1743114731156,8.82969808,2012.1,2012.0,2.30121]
[1743114736161,5.62189808,2012.1,2012.0,2.30121]
[1743114736360,8.82969808,2012.1,2012.0,2.30121]
[1743114736857,8.82969808,2012.1,2012.0,1.3069]
[1743114737167,0.99436,2011.9,2011.8,1.7018]
[1743114738557,0.99436,2011.9,2011.8,3.0529]
[1743114738958,0.99436,2011.9,2011.8,2.0585]
[1743114739156,0.99436,2011.9,2011.8,3.05291]
[1743114740565,4.20216,2011.9,2011.8,3.05291]
[1743114746066,4.90576,2011.9,2011.8,3.05291]
[1743114746661,4.90576,2011.9,2011.8,2.0585]
[1743114746863,4.90576,2011.9,2011.8,3.05291]
[1743114747167,4.90576,2011.9,2011.8,3.55225331]
[1743114747568,1.69796,2011.9,2011.8,3.55225331]
[1743114747763,1.69796,2011.9,2011.8,3.05291]
[1743114747969,3.12476,2011.9,2011.8,3.55239127]
[1743114749762,3.12476,2011.9,2011.8,3.55282667]
[1743114751877,3.12476,2011.9,2011.8,4.19833878]
[1743114752265,3.12476,2011.9,2011.8,3.55307297]
[1743114753175,2.42116,2011.9,2011.8,3.55307297]
[1743114753367,3.10456,2011.9,2011.8,4.27071316]
[1743114753772,3.10456,2011.9,2011.8,4.27070495]
[1743114753982,3.10456,2011.9,2011.8,4.91595598]
[1743114754179,3.10456,2011.9,2011.8,4.91596051]
[1743114754775,3.10456,2011.9,2011.8,4.19831349]
[1743114755582,3.10456,2011.9,2011.8,4.91597102]
[1743114755781,3.10456,2011.9,2011.8,4.19831924]
[1743114756079,3.10456,2011.9,2011.8,3.55307848]
[1743114758181,3.10456,2011.9,2011.8,3.5531018]
[1743114758379,3.10456,2011.9,2011.8,4.27084353]
[1743114758575,3.10456,2011.9,2011.8,3.5531018]
[1743114758984,3.10456,2011.9,2011.8,4.19845477]
[1743114759580,3.10456,2011.9,2011.8,3.5531018]
[1743114759883,3.10456,2011.9,2011.8,3.05291]
[1743114760176,3.10456,2011.9,2011.8,3.55319286]
[1743114760381,3.10456,2011.9,2011.8,2.84579286]
[1743114761383,6.31236,2011.9,2011.8,2.84579286]
[1743114761983,6.31236,2011.9,2011.8,2.84586681]
[1743114762885,6.31236,2011.9,2011.8,3.49142904]
[1743114763088,6.31236,2011.9,2011.8,2.49701904]
[1743114763585,6.31236,2011.9,2011.8,1.85145681]
[1743114764386,3.10456,2011.9,2011.8,1.85145681]
[1743114764586,6.31236,2011.9,2011.8,2.84586681]
[1743114766990,3.10456,2011.9,2011.8,3.56408152]
[1743114767191,3.10456,2011.9,2011.8,4.20984061]
[1743114767989,3.10456,2011.9,2011.8,4.21004159]
[1743114769295,3.10456,2011.9,2011.8,3.21563159]
[1743114769493,3.10456,2011.9,2011.8,1.85165309]
[1743114770296,6.31236,2011.9,2011.8,1.85165309]
[1743114770697,6.31236,2011.9,2011.8,2.84606309]
[1743114772301,3.10456,2011.9,2011.8,2.84606309]
[1743114774005,3.10456,2011.9,2011.8,2.8460579]
[1743114775602,3.10456,2011.9,2011.8,1.8516479]
[1743114776102,3.10456,2011.9,2011.8,1.85163573]
[1743114777706,3.10456,2011.9,2011.8,2.84604573]
[1743114778801,3.10456,2011.9,2011.8,1.85163573]
[1743114778996,3.10456,2011.9,2011.8,2.84604573]
[1743114779709,6.31236,2011.9,2011.8,2.84604573]
[1743114780011,6.31236,2011.9,2011.8,2.84602755]
[1743114780202,6.31236,2011.9,2011.8,1.85161755]
[1743114780403,6.31236,2011.9,2011.8,2.84602755]
[1743114780614,6.31236,2011.9,2011.8,1.85161755]
[1743114781609,6.31236,2011.9,2011.8,0.50051755]
[1743114782210,6.31236,2011.9,2011.8,1.87281755]
[1743114785308,6.31236,2011.9,2011.8,1.87276596]
[1743114787215,6.31236,2011.9,2011.8,1.3723]
[1743114787414,6.31236,2011.9,2011.8,1.87274219]
[1743114788710,0.99461,2011.4,2011.0,4.97384]
[1743114788905,0.99461,2011.4,2011.3,6.56988712]
[1743114789314,1.6604,2011.5,2011.4,0.99461]
[1743114789518,0.9946,2011.5,2011.4,2.88825804]
[1743114789709,0.9946,2011.5,2011.4,3.56495804]
[1743114790209,2.3174,2011.5,2011.4,5.62981656]
[1743114791216,2.3174,2011.5,2011.4,5.62954244]
[1743114793314,1.3228,2011.5,2011.4,5.62954244]
[1743114794115,2.31736,2011.5,2011.4,3.95823244]
[1743114795224,2.31736,2011.5,2011.4,3.24024425]
[1743114795722,2.31736,2011.5,2011.4,2.59458573]
[1743114796823,2.31736,2011.5,2011.4,3.58919573]
[1743114797513,2.31736,2011.5,2011.4,2.59458573]
[1743114798717,2.31736,2011.5,2011.4,2.0946]
[1743114799031,3.00406,2011.5,2011.4,3.08921]
[1743114799221,3.00406,2011.5,2011.4,2.0946]
[1743114799420,3.00406,2011.5,2011.4,3.08921]
[1743114799624,3.00406,2011.5,2011.4,2.0946]
[1743114801227,3.00406,2011.5,2011.4,1.4192]
[1743114802118,0.99466,2011.3,2011.2,1.6738]
[1743114802321,4.17566,2011.3,2011.2,3.5917401]
[1743114802730,5.48096,2011.3,2011.2,3.5917401]
[1743114803128,5.48096,2011.3,2011.2,3.5917464]
[1743114805330,5.48096,2011.3,2011.2,3.59168258]
[1743114809134,5.48096,2011.3,2011.2,3.59173972]
[1743114811338,5.48096,2011.3,2011.2,3.59177831]
[1743114814143,5.48096,2011.3,2011.2,3.59192001]
[1743114815229,5.48096,2011.3,2011.2,3.5919775]
[1743114815834,5.48096,2011.3,2011.2,3.0922]
[1743114816031,5.48096,2011.3,2011.2,3.59205018]
[1743114817440,5.48096,2011.3,2011.2,3.59224017]
[1743114818441,5.48096,2011.3,2011.2,4.23751671]
[1743114819135,5.48096,2011.3,2011.2,1.63997654]
[1743114819343,5.48096,2011.3,2011.2,2.14019682]
[1743114820644,5.48096,2011.3,2011.2,2.85797058]
[1743114820846,5.48096,2011.3,2011.2,2.14019682]
[1743114821234,5.48096,2011.3,2011.2,2.14023375]
[1743114821438,5.48096,2011.3,2011.2,2.85807039]
[1743114823851,5.48096,2011.3,2011.2,1.14553375]
[1743114824142,5.48096,2011.3,2011.2,0.50025721]
[1743114825139,5.48096,2011.3,2011.2,1.83960088]
[1743114826850,5.48096,2011.3,2011.2,2.83430088]
[1743114827145,5.48096,2011.3,2011.2,1.83950609]
[1743114827341,5.48096,2011.3,2011.2,2.83420609]
[1743114829164,5.48096,2011.3,2011.2,2.83417414]
[1743114830565,4.4853,2011.3,2011.2,2.83417414]
[1743114831169,3.2078,2011.4,2011.3,0.99466]
[1743114831367,1.4264,2011.4,2011.3,4.27459106]
[1743114831569,1.4264,2011.4,2011.3,4.95459106]
[1743114831758,1.4264,2011.4,2011.3,5.6001048]
[1743114837162,1.4264,2011.4,2011.3,5.59949173]
[1743114837566,1.4264,2011.4,2011.3,4.8818987]
[1743114837767,1.4264,2011.4,2011.3,5.59944936]
[1743114839064,1.4264,2011.4,2011.3,4.8818987]
[1743114839264,1.4264,2011.4,2011.3,5.59940086]
[1743114842475,1.4264,2011.4,2011.3,5.59898024]
[1743114844476,1.4264,2011.4,2011.3,4.9533916]
[1743114844676,1.4264,2011.4,2011.3,5.59826793]
[1743114845175,1.4264,2011.4,2011.3,4.91826793]
[1743114845376,2.0971,2011.4,2011.3,4.91826793]
[1743114846484,2.0971,2011.4,2011.3,4.91818785]
[1743114848475,2.0971,2011.4,2011.3,4.91812643]
[1743114850582,2.0971,2011.4,2011.3,4.91812108]
[1743114854477,2.0971,2011.4,2011.3,4.9181743]
[1743114857685,2.0971,2011.4,2011.3,2.8565743]
[1743114860278,2.0971,2011.4,2011.3,4.0056828]
[1743114860477,2.0971,2011.4,2011.3,4.0074039]
[1743114860685,3.09171,2011.4,2011.3,2.85828454]
[1743114860983,3.09171,2011.4,2011.3,4.00741081]
[1743114862172,3.09171,2011.4,2011.3,5.43731081]
[1743114864690,3.09171,2011.4,2011.3,5.43745149]
[1743114864888,2.0971,2011.4,2011.3,5.43796862]
[1743114866284,3.09171,2011.4,2011.3,5.43796862]
[1743114866593,3.09171,2011.4,2011.3,5.43796012]
[1743114868692,3.09171,2011.4,2011.3,5.43802107]
[1743114870700,3.09171,2011.4,2011.3,5.43804161]
[1743114870996,3.09171,2011.4,2011.3,4.28857406]
[1743114871197,3.09171,2011.4,2011.3,4.44342464]
[1743114871391,3.09171,2011.4,2011.3,4.28857406]
[1743114872191,3.09171,2011.4,2011.3,3.29391406]
[1743114872391,3.09171,2011.4,2011.3,1.14559684]
[1743114872392,6.29951,2011.4,2011.3,1.14559684]
[1743114872689,6.29951,2011.4,2011.3,0.50072051]
[1743114872896,0.9947,2011.2,2011.1,1.396]
[1743114873100,4.1737,2011.2,2011.1,3.26100109]
[1743114873498,5.603,2011.2,2011.1,2.54261724]
[1743114873701,5.603,2011.2,2011.1,1.89668417]
[1743114874203,5.603,2011.2,2011.1,0.50068417]
[1743114874592,0.99475,2011.1,2011.0,2.39078]
[1743114874794,2.43375,2011.1,2011.0,3.60879256]
[1743114875195,2.43375,2011.1,2011.0,4.25416711]
[1743114876902,2.43375,2011.1,2011.0,4.25381951]
[1743114877100,2.43375,2011.1,2011.0,2.8910313]
[1743114877296,2.43375,2011.1,2011.0,1.8962513]
[1743114878399,2.43375,2011.1,2011.0,2.8910513]
[1743114878798,2.43375,2011.1,2011.0,2.89061249]
[1743114879004,2.43375,2011.1,2011.0,1.89581249]
[1743114879205,2.43375,2011.1,2011.0,2.89061249]
[1743114882006,2.43375,2011.1,2011.0,0.49981249]
[1743114882206,0.9948,2011.0,2010.9,1.3348]
[1743114882410,3.0336,2011.0,2010.9,2.82933678]
[1743114884510,3.0336,2011.0,2010.9,2.82905464]
[1743114884801,3.0336,2011.0,2010.9,2.82905541]
[1743114886806,3.0336,2011.0,2010.9,2.82897863]
[1743114892818,3.0336,2011.0,2010.9,2.82899771]
[1743114898214,3.0336,2011.0,2010.9,1.83414771]
[1743114898609,3.0336,2011.0,2010.9,1.3348]
[1743114898915,3.0336,2011.0,2010.9,1.83455487]
[1743114900822,3.0336,2011.0,2010.9,1.83484507]
[1743114901214,3.0336,2011.0,2010.9,0.50004507]
[1743114901922,0.99505,2010.5,2010.4,1.68187]
[1743114902123,0.99505,2010.5,2010.4,4.04832701]
[1743114902316,0.99505,2010.5,2010.4,2.8999016]
[1743114902713,0.99505,2010.5,2010.4,3.54522872]
[1743114903224,2.44015,2010.5,2010.4,4.86382872]
[1743114903823,2.44015,2010.5,2010.4,3.15099284]
[1743114904425,2.44015,2010.5,2010.4,2.50566572]
[1743114905915,2.44015,2010.5,2010.4,2.0054]
[1743114906119,2.44015,2010.5,2010.4,2.50515788]
[1743114907428,2.44015,2010.5,2010.4,2.0054]
[1743114908419,2.44015,2010.5,2010.4,3.0005]
[1743114908625,2.44015,2010.5,2010.4,2.50477532]
[1743114908925,2.44015,2010.5,2010.4,2.0054]
[1743114910623,0.9952,2010.3,2010.2,0.99515]
[1743114910825,0.9952,2010.3,2010.2,2.21078208]
[1743114911027,0.9952,2010.3,2010.2,2.85490402]
[1743114912028,2.3803,2010.3,2010.2,4.259017]
[1743114913225,1.3851,2010.3,2010.2,4.259017]
[1743114913418,2.38025,2010.3,2010.2,4.979817]
[1743114914028,2.38025,2010.3,2010.2,4.97965305]
[1743114914029,5.55925,2010.3,2010.2,4.97965305]
[1743114914522,5.55925,2010.3,2010.2,4.97960243]
[1743114915425,5.55925,2010.3,2010.2,4.26351902]
[1743114917227,5.55925,2010.3,2010.2,2.89859708]
[1743114917423,5.55925,2010.3,2010.2,3.6146541]
[1743114918121,5.55925,2010.3,2010.2,3.54246291]
[1743114918831,5.55925,2010.3,2010.2,2.89859708]
[1743114919421,4.5641,2010.3,2010.2,2.89859708]
[1743114919623,5.55925,2010.3,2010.2,2.89859708]
[1743114920331,0.99503,2010.6,2010.5,0.99505]
[1743114920530,5.52863,2010.6,2010.5,0.99505]
[1743114921227,5.52863,2010.6,2010.5,2.38105]
[1743114921830,2.34963,2010.6,2010.5,2.38105]
[1743114922126,4.5336,2010.6,2010.5,2.88020852]
[1743114922327,4.5336,2010.6,2010.5,3.58159318]
[1743114922735,5.5286,2010.6,2010.5,3.58159318]
[1743114923936,5.5286,2010.6,2010.5,3.5816778]
[1743114924236,4.5336,2010.6,2010.5,3.5816778]
[1743114925726,1.3546,2010.6,2010.5,3.5816778]
[1743114925928,1.3546,2010.6,2010.5,3.58188733]
[1743114926735,0.00745675,2010.7,2010.6,0.995]
[1743114926943,0.00745675,2010.7,2010.6,3.65361477]
[1743114927534,0.00745675,2010.7,2010.6,4.29820883]
[1743114927734,0.00745675,2010.7,2010.6,3.08179406]
[1743114928027,0.00745675,2010.7,2010.6,4.29848606]
[1743114928635,1.32775675,2010.7,2010.6,4.29848606]
[1743114929838,3.02060675,2010.7,2010.6,4.29848606]
[1743114930038,3.02060675,2010.7,2010.6,4.29875541]
[1743114930351,3.02060675,2010.7,2010.6,3.5815059]
[1743114930734,3.02060675,2010.7,2010.6,2.93691184]
[1743114930930,3.02060675,2010.7,2010.6,3.6541442]
[1743114930931,4.50575675,2010.7,2010.6,3.6541442]
[1743114931736,4.50575675,2010.7,2010.6,3.65418765]
[1743114931937,4.50575675,2010.7,2010.6,4.29913157]
[1743114932943,0.00745675,2010.7,2010.6,4.29913157]
[1743114933143,0.00745675,2010.7,2010.6,5.4466249]
[1743114933341,0.00745675,2010.7,2010.6,4.29913157]
[1743114933537,0.00745675,2010.7,2010.6,5.44642536]
[1743114933746,0.00745675,2010.7,2010.6,5.44647756]
[1743114934346,0.00745675,2010.7,2010.6,4.29918377]
[1743114935641,0.00745675,2010.7,2010.6,3.08214392]
[1743114935843,0.00745675,2010.7,2010.6,5.44547109]
[1743114936239,0.00745675,2010.7,2010.6,5.44549804]
[1743114936439,0.00745675,2010.7,2010.6,4.29857429]
[1743114937746,0.00745675,2010.7,2010.6,3.08214392]
[1743114937945,0.00745675,2010.7,2010.6,4.29833568]
[1743114938239,0.00745675,2010.7,2010.6,4.2983639]
[1743114938445,0.00745675,2010.7,2010.6,4.29837688]
[1743114938639,1.33105675,2010.7,2010.6,4.29837688]
[1743114939446,2.32600675,2010.7,2010.6,4.29837688]
[1743114939839,2.32600675,2010.7,2010.6,4.29840047]
[1743114940147,1.33105675,2010.7,2010.6,4.29840047]
[1743114940948,1.33105675,2010.7,2010.6,5.44511623]
[1743114941152,1.33105675,2010.7,2010.6,4.29840047]
[1743114941750,1.33105675,2010.7,2010.6,4.29837868]
[1743114943750,1.33105675,2010.7,2010.6,4.29841289]
[1743114945751,1.33105675,2010.7,2010.6,4.29860483]
[1743114947949,2.32600675,2010.7,2010.6,4.29887023]
[1743114949151,1.33105675,2010.7,2010.6,4.29887023]
[1743114949352,2.32600675,2010.7,2010.6,4.29887023]
[1743114949555,1.33105675,2010.7,2010.6,4.29887023]
[1743114949854,1.33105675,2010.7,2010.6,5.44690057]
[1743114952659,0.7007,2011.0,2010.9,0.99485]
[1743114952865,0.7007,2011.0,2010.9,1.49482932]
[1743114953451,0.7007,2011.0,2010.9,2.21256608]
[1743114953858,1.64869,2011.1,2011.0,0.9948]
[1743114954057,1.64869,2011.1,2011.0,2.83973069]
[1743114954258,0.6539,2011.1,2011.0,2.83973069]
[1743114954660,0.6539,2011.1,2011.0,3.55744665]
[1743114955064,0.6539,2011.1,2011.0,4.20277938]
[1743114955259,1.9968,2011.1,2011.0,3.48506342]
[1743114955761,1.9968,2011.1,2011.0,4.2027601]
[1743114957059,2.99155,2011.1,2011.0,4.2027601]
[1743114957569,1.9968,2011.1,2011.0,4.2027601]
[1743114957764,1.9968,2011.1,2011.0,4.20257]
[1743114958166,2.99155,2011.1,2011.0,4.20257]
[1743114958560,1.9968,2011.1,2011.0,4.20257]
[1743114958960,2.99155,2011.1,2011.0,4.20257]
[1743114959468,1.9968,2011.1,2011.0,3.48496989]
[1743114959968,2.99155,2011.1,2011.0,4.20236645]
[1743114960164,1.9968,2011.1,2011.0,4.20236645]
[1743114960375,2.99155,2011.1,2011.0,4.20236645]
[1743114960865,2.99155,2011.1,2011.0,2.8395551]
[1743114961170,0.9948,2011.0,2010.9,0.99483]